[Event "46th GRE-chT Premier 2018"]
[Site "Rio Achaia"]
[Date "2018.07.12"]
[Round "4"]
[White "Bellou, Nazareta"]
[Black "Chasouraki, Chrysi"]
[Result "1/2-1/2"]
[ECO "B76"]
[WhiteElo "1211"]
[BlackElo "1026"]
[Annotator "NA"]
[PlyCount "182"]
[EventDate "2018.07.10"]
[EventType "team-tourn"]
[EventCountry "GRE"]
[SourceTitle "playchess.com"]
[Source "ChessBase"]
[SourceQuality "1"]
[TimeControl "40/5400+30:1800+30"]

1. e4 {[%emt 0:00:00]} c5 {[%emt 0:00:00]} 2. Nf3 {[%emt 0:00:05]} d6 {[%emt 0:00:00]} 3. d4 {[%emt 0:00:28]} cxd4 {[%emt 0:00:06]} 4. Nxd4 {[%emt 0:00:06]} Nf6 {[%emt 0:00:09]} 5. Nc3 {[%emt 0:00:24]} g6 {[%emt 0:00:09]} 6. Be3 {[%emt 0:00:51]} Bg7 {[%emt 0:00:13]} 7. f3 {[%emt 0:00:15]} O-O {[%emt 0:00:36]} 8. Qd2 {[%emt 0:00:57]} Nc6 {[%emt 0:00:13]} 9. O-O-O {[%emt 0:00:32]} d5 {[%emt 0:00:32]} 10. Qe1 {[%emt 0:00:31]} Be6 {[%emt 0:16:14]} 11. g4 {[%emt 0:04:03]} Nxd4 {[%emt 0:13:40]} 12. Bxd4 {[%emt 0:01:06]} a6 {[%emt 0:13:04]} 13. h4 {[%emt 0:06:08]} Re8 {[%emt 0:16:35]} 14. exd5 {[%emt 0:10:57]} Bc8 {[%emt 0:08:05]} 15. Bc4 {[%emt 0:09:14]} b5 {[%emt 0:01:34]} 16. Bb3 {[%emt 0:00:15]} Bb7 {[%emt 0:01:21]} 17. a3 {[%emt 0:03:55]} Qd7 {[%emt 0:03:06]} 18. Qe3 {[%emt 0:15:16]} Rac8 {[%emt 0:08:46]} 19. h5 {[%emt 0:00:59]} a5 {[%emt 0:05:41]} 20. hxg6 {[%emt 0:01:03]} hxg6 {[%emt 0:01:03]} 21. Rh3 {[%emt 0:05:00]} a4 {[%emt 0:02:49]} 22. Ba2 {[%emt 0:00:16]} Ba6 {[%emt 0:00:57]} 23. Rdh1 {[%emt 0:01:56]} Qd6 {[%emt 0:01:50]} 24. g5 {[%emt 0:01:53]} Nh5 {[%emt 0:00:31]} 25. Bxg7 {[%emt 0:01:34]} Kxg7 {[%emt 0:00:07]} 26. f4 {[%emt 0:01:08]} Rh8 {[%emt 0:03:02]} 27. Qe5+ {[%emt 0:05:51]} Kg8 {[%emt 0:01:15]} 28. Qxd6 {[%emt 0:03:23]} exd6 {[%emt 0:00:05]} 29. Ne4 {[%emt 0:00:41]} Rd8 {[%emt 0:00:52]} 30. Nf6+ {[%emt 0:01:11]} Kg7 {[%emt 0:00:16]} 31. Nxh5+ {[%emt 0:00:27]} gxh5 {[%emt 0:00:07]} 32. Rxh5 {[%emt 0:00:21]} Rxh5 {[%emt 0:00:17]} 33. Rxh5 {[%emt 0:00:04]} Kg6 {[%emt 0:00:20]} 34. Rh1 {[%emt 0:00:36]} Kf5 {[%emt 0:00:43]} 35. Rf1 {[%emt 0:00:37]} b4 {[%emt 0:00:41]} 36. Rf2 {[%emt 0:00:54]} bxa3 {[%emt 0:00:05]} 37. bxa3 {[%emt 0:00:09]} Re8 {[%emt 0:00:17]} 38. c3 {[%emt 0:04:32]} Bd3 {[%emt 0:01:33]} 39. Kd2 {[%emt 0:01:42]} Be4 {[%emt 0:00:13]} 40. Bc4 {[%emt 0:00:00]} Rb8 {[%emt 0:00:00]} 41. Ke3 {[%emt 0:06:26]} Rc8 {[%emt 0:03:53]} 42. Kd4 {[%emt 0:00:52]} Rb8 {[%emt 0:09:49]} 43. Ba6 {[%emt 0:07:09]} Rb3 {[%emt 0:01:15]} 44. Bc8+ {[%emt 0:00:43]} Kg6 {[%emt 0:00:28]} 45. Kxe4 {[%emt 0:00:15]} Rxa3 {[%emt 0:00:38]} 46. c4 {[%emt 0:03:29]} Ra1 {[%emt 0:02:38]} 47. Bf5+ {[%emt 0:04:18]} Kg7 {[%emt 0:00:18]} 48. Kd3 {[%emt 0:08:17]} Ra3+ {[%emt 0:01:09]} 49. Kd4 {[%emt 0:00:14]} Ra1 {[%emt 0:00:59]} 50. Bd3 {[%emt 0:02:59]} a3 {[%emt 0:01:35]} 51. Kc3 {[%emt 0:00:55]} a2 {[%emt 0:00:06]} 52. Kd4 {[%emt 0:02:27]} Kf8 {[%emt 0:00:40]} 53. f5 {[%emt 0:01:45]} Ke7 {[%emt 0:04:31]} 54. g6 {[%emt 0:01:13]} Kf6 {[%emt 0:00:41]} 55. Rc2 {[%emt 0:00:58]} Kg7 {[%emt 0:00:30]} 56. Kc3 {[%emt 0:02:55]} fxg6 {[%emt 0:00:38]} 57. fxg6 {[%emt 0:00:12]} Kf6 {[%emt 0:00:20]} 58. c5 {[%emt 0:01:26]} dxc5 {[%emt 0:01:45]} 59. Kb3 {[%emt 0:03:38]} Rd1 {[%emt 0:00:22]} 60. Kxa2 {[%emt 0:00:46]} Rxd3 {[%emt 0:00:10]} 61. Rg2 {[%emt 0:00:40]} Kg7 {[%emt 0:00:31]} 62. Rg5 {[%emt 0:01:00]} Rf3 {[%emt 0:02:31]} 63. d6 {[%emt 0:03:27]} Rd3 {[%emt 0:00:12]} 64. Rxc5 {[%emt 0:02:49]} Rxd6 {[%emt 0:00:14]} 65. Kb3 {[%emt 0:00:13]} Kxg6 {[%emt 0:01:07]} 66. Kb4 {[%emt 0:00:13]} Kf6 {[%emt 0:00:22]} 67. Rh5 {[%emt 0:00:47]} Ke6 {[%emt 0:00:39]} 68. Kc5 {[%emt 0:00:31]} Rd1 {[%emt 0:01:25]} 69. Kc4 {[%emt 0:00:30]} Rc1+ {[%emt 0:00:17]} 70. Kd3 {[%emt 0:00:07]} Rd1+ {[%emt 0:00:09]} 71. Kc2 {[%emt 0:00:12]} Rd5 {[%emt 0:00:21]} 72. Rh6+ {[%emt 0:00:25]} Ke5 {[%emt 0:00:22]} 73. Kc3 {[%emt 0:00:24]} Rd6 {[%emt 0:00:34]} 74. Rh5+ {[%emt 0:00:10]} Ke6 {[%emt 0:00:14]} 75. Kc4 {[%emt 0:00:10]} Rc6+ {[%emt 0:00:30]} 76. Kd4 {[%emt 0:00:47]} Rd6+ {[%emt 0:00:15]} 77. Kc5 {[%emt 0:00:16]} Rd1 {[%emt 0:00:14]} 78. Rh6+ {[%emt 0:00:26]} Ke5 {[%emt 0:00:23]} 79. Kc4 {[%emt 0:00:31]} Rc1+ {[%emt 0:00:11]} 80. Kd3 {[%emt 0:00:07]} Rd1+ {[%emt 0:00:07]} 81. Kc2 {[%emt 0:00:12]} Rd6 {[%emt 0:00:10]} 82. Rh5+ {[%emt 0:00:12]} Ke6 {[%emt 0:00:11]} 83. Kc3 {[%emt 0:00:17]} Rc6+ {[%emt 0:00:07]} 84. Kb4 {[%emt 0:00:19]} Rb6+ {[%emt 0:00:13]} 85. Kc5 {[%emt 0:00:14]} Rb1 {[%emt 0:00:16]} 86. Kc4 {[%emt 0:00:22]} Rc1+ {[%emt 0:00:09]} 87. Kd3 {[%emt 0:00:14]} Rd1+ {[%emt 0:00:06]} 88. Kc2 {[%emt 0:00:05]} Rd5 {[%emt 0:00:13]} 89. Rh6+ {[%emt 0:00:09]} Ke5 {[%emt 0:00:22]} 90. Kc3 {[%emt 0:00:06]} Rc5+ {[%emt 0:00:09]} 91. Kd3 {[%emt 0:00:34]} Rd5+ {[%emt 0:00:12] Ke4+} 1/2-1/2

[Event "46th GRE-chT Premier 2018"]
[Site "Rio Achaia"]
[Date "2018.07.12"]
[Round "4"]
[White "Mplitsa, Artemis"]
[Black "Pilalis, Ernestos"]
[Result "0-1"]
[ECO "B41"]
[WhiteElo "1182"]
[BlackElo "1278"]
[Annotator "NA"]
[PlyCount "62"]
[EventDate "2018.07.10"]
[EventType "team-tourn"]
[EventCountry "GRE"]
[SourceTitle "playchess.com"]
[Source "ChessBase"]
[SourceQuality "1"]
[TimeControl "40/5400+30:1800+30"]

1. e4 {[%emt 0:00:00]} c5 {[%emt 0:00:00]} 2. Nf3 {[%emt 0:00:00]} e6 {[%emt 0:00:00]} 3. d4 {[%emt 0:00:00]} cxd4 {[%emt 0:00:00]} 4. Nxd4 {[%emt 0:00:00]} a6 {[%emt 0:00:21]} 5. c4 {[%emt 0:00:22]} Nf6 {[%emt 0:00:37]} 6. Nc3 {[%emt 0:00:23]} Qc7 {[%emt 0:00:54]} 7. a3 {[%emt 0:00:48]} Nc6 {[%emt 0:00:47]} 8. Be3 {[%emt 0:01:09]} Be7 {[%emt 0:00:59]} 9. Be2 {[%emt 0:08:06]} O-O {[%emt 0:06:09]} 10. O-O {[%emt 0:02:10]} d6 {[%emt 0:03:41]} 11. f4 {[%emt 0:07:32]} Bd7 {[%emt 0:05:15]} 12. Qe1 {[%emt 0:10:18]} e5 {[%emt 0:08:30]} 13. Nf5 {[%emt 0:12:02]} Kh8 {[%emt 0:15:17]} 14. Nd5 {[%emt 0:04:18]} Nxd5 {[%emt 0:03:30]} 15. cxd5 {[%emt 0:00:26]} Bxf5 {[%emt 0:00:11]} 16. exf5 {[%emt 0:03:02]} exf4 {[%emt 0:00:54]} 17. Rxf4 {[%emt 0:13:42]} Ne5 {[%emt 0:05:54]} 18. Rb4 {[%emt 0:04:47]} Bd8 {[%emt 0:09:54]} 19. Bb6 {[%emt 0:06:58]} Qd7 {[%emt 0:03:26]} 20. Bxd8 {[%emt 0:02:57]} Raxd8 {[%emt 0:00:47]} 21. Qf2 {[%emt 0:03:37]} Qe7 {[%emt 0:10:45]} 22. Qb6 {[%emt 0:05:07]} Rd7 {[%emt 0:03:17]} 23. Re1 {[%emt 0:05:26]} Nd3 {[%emt 0:01:45]} 24. Kf1 {[%emt 0:01:29]} Nxe1 {[%emt 0:00:25]} 25. Kxe1 {[%emt 0:00:20]} Re8 {[%emt 0:01:36]} 26. Qf2 {[%emt 0:00:23]} Qe5 {[%emt 0:00:46]} 27. Rd4 {[%emt 0:00:37]} Rde7 {[%emt 0:01:00]} 28. Rd2 {[%emt 0:00:09]} Qxh2 {[%emt 0:01:15]} 29. Kd1 {[%emt 0:00:42]} Qe5 {[%emt 0:01:35]} 30. g4 {[%emt 0:01:25]} Qe4 {[%emt 0:03:49]} 31. Kc1 {[%emt 0:01:33]} Rc8+ {[%emt 0:00:47]} 0-1

[Event "46th GRE-chT Premier 2018"]
[Site "Rio Achaia"]
[Date "2018.07.12"]
[Round "4"]
[White "Amaxopoulos, Christos"]
[Black "Fragkos, Vasileios"]
[Result "0-1"]
[ECO "A46"]
[WhiteElo "1180"]
[BlackElo "1774"]
[Annotator "NA"]
[PlyCount "78"]
[EventDate "2018.07.10"]
[EventType "team-tourn"]
[EventCountry "GRE"]
[SourceTitle "playchess.com"]
[Source "ChessBase"]
[SourceQuality "1"]
[TimeControl "40/5400+30:1800+30"]

1. d4 {[%emt 0:00:00]} Nf6 {[%emt 0:00:00]} 2. Nf3 {[%emt 0:00:00]} e6 {[%emt 0:00:00]} 3. g3 {[%emt 0:00:00]} Be7 {[%emt 0:00:00]} 4. Bg2 {[%emt 0:00:00]} O-O {[%emt 0:00:18]} 5. O-O {[%emt 0:00:00]} d5 {[%emt 0:00:03]} 6. Bf4 {[%emt 0:00:02]} c6 {[%emt 0:00:08]} 7. e3 {[%emt 0:00:47]} Nbd7 {[%emt 0:00:54]} 8. Nbd2 {[%emt 0:00:37]} b6 {[%emt 0:02:38]} 9. Rc1 {[%emt 0:03:48]} b5 {[%emt 0:05:01]} 10. c3 {[%emt 0:05:48]} a5 {[%emt 0:01:03]} 11. a4 {[%emt 0:03:26]} Ne8 {[%emt 0:03:06]} 12. axb5 {[%emt 0:06:44]} cxb5 {[%emt 0:00:22]} 13. Qb3 {[%emt 0:09:17]} g5 {[%emt 0:00:17]} 14. Bxg5 {[%emt 0:11:31]} Bxg5 {[%emt 0:00:07]} 15. Rfe1 {[%emt 0:04:11]} Nd6 {[%emt 0:11:36]} 16. Nxg5 {[%emt 0:07:19]} Qxg5 {[%emt 0:00:09]} 17. Qc2 {[%emt 0:00:22]} Bb7 {[%emt 0:03:42]} 18. Ra1 {[%emt 0:03:36]} Nf6 {[%emt 0:01:30]} 19. Nb3 {[%emt 0:01:19]} a4 {[%emt 0:00:49]} 20. Nc5 {[%emt 0:00:36]} Bc6 {[%emt 0:00:38]} 21. f3 {[%emt 0:06:07]} Nd7 {[%emt 0:13:52]} 22. Nd3 {[%emt 0:01:43]} Nc4 {[%emt 0:03:41]} 23. Nf2 {[%emt 0:04:49]} Nf6 {[%emt 0:01:11]} 24. e4 {[%emt 0:05:39]} dxe4 {[%emt 0:01:24]} 25. fxe4 {[%emt 0:01:06]} Qd2 {[%emt 0:00:25]} 26. Qxd2 {[%emt 0:01:42]} Nxd2 {[%emt 0:00:08]} 27. d5 {[%emt 0:01:01]} exd5 {[%emt 0:00:25]} 28. exd5 {[%emt 0:00:12]} Bxd5 {[%emt 0:02:37]} 29. Bxd5 {[%emt 0:02:04]} Nxd5 {[%emt 0:00:20]} 30. Kg2 {[%emt 0:02:48]} Nc4 {[%emt 0:02:07]} 31. Rab1 {[%emt 0:05:21]} Rfe8 {[%emt 0:00:12]} 32. Rxe8+ {[%emt 0:00:34]} Rxe8 {[%emt 0:00:06]} 33. b3 {[%emt 0:00:09]} Nde3+ {[%emt 0:01:46]} 34. Kg1 {[%emt 0:00:42]} Nd2 {[%emt 0:00:05]} 35. Rb2 {[%emt 0:00:51]} Nxb3 {[%emt 0:00:22]} 36. Nd3 {[%emt 0:01:48]} Nc4 {[%emt 0:00:50]} 37. Rc2 {[%emt 0:01:30]} Rd8 {[%emt 0:00:44]} 38. Nf2 {[%emt 0:00:55]} a3 {[%emt 0:00:52]} 39. Ra2 {[%emt 0:04:16]} Rd2 {[%emt 0:00:39]} 0-1

[Event "46th GRE-chT Premier 2018"]
[Site "Rio Achaia"]
[Date "2018.07.12"]
[Round "4"]
[White "Karamitanis, Lazaros"]
[Black "Chatzigavriil, Georgios"]
[Result "0-1"]
[ECO "D02"]
[WhiteElo "1159"]
[BlackElo "1318"]
[Annotator "NA"]
[PlyCount "80"]
[EventDate "2018.07.10"]
[EventType "team-tourn"]
[EventCountry "GRE"]
[SourceTitle "playchess.com"]
[Source "ChessBase"]
[SourceQuality "1"]
[TimeControl "40/5400+30:1800+30"]

1. d4 {[%emt 0:00:00]} d5 {[%emt 0:00:00]} 2. Nf3 {[%emt 0:00:00]} c5 {[%emt 0:00:00]} 3. c3 {[%emt 0:00:16]} Nf6 {[%emt 0:00:00]} 4. Bf4 {[%emt 0:00:09]} Qb6 {[%emt 0:00:05]} 5. Qb3 {[%emt 0:00:39]} c4 {[%emt 0:00:07]} 6. Qc2 {[%emt 0:00:17]} Nc6 {[%emt 0:00:09]} 7. e3 {[%emt 0:00:32]} Bf5 {[%emt 0:01:48]} 8. Qc1 {[%emt 0:01:21]} Nh5 {[%emt 0:06:57]} 9. Bg3 {[%emt 0:00:39]} Nxg3 {[%emt 0:00:13]} 10. hxg3 {[%emt 0:00:05]} f6 {[%emt 0:02:07]} 11. Nfd2 {[%emt 0:28:59]} e5 {[%emt 0:01:33]} 12. e4 {[%emt 0:00:45]} Bxe4 {[%emt 0:05:16]} 13. Nxe4 {[%emt 0:00:11]} dxe4 {[%emt 0:00:08]} 14. Bxc4 {[%emt 0:00:50]} exd4 {[%emt 0:01:09]} 15. cxd4 {[%emt 0:01:55]} Bb4+ {[%emt 0:00:44]} 16. Nd2 {[%emt 0:07:50]} Qxd4 {[%emt 0:01:55]} 17. a3 {[%emt 0:00:21]} Bxd2+ {[%emt 0:00:13]} 18. Qxd2 {[%emt 0:00:24]} Qxc4 {[%emt 0:00:15]} 19. Rc1 {[%emt 0:00:47]} Qd3 {[%emt 0:00:08]} 20. Qxd3 {[%emt 0:00:54]} exd3 {[%emt 0:00:08]} 21. Kd2 {[%emt 0:00:13]} Rd8 {[%emt 0:00:14]} 22. Rc3 {[%emt 0:00:47]} Ne5 {[%emt 0:01:05]} 23. Re1 {[%emt 0:00:09]} Kf7 {[%emt 0:00:07]} 24. Rc7+ {[%emt 0:00:22]} Rd7 {[%emt 0:00:11]} 25. Rxd7+ {[%emt 0:00:46]} Nxd7 {[%emt 0:00:56]} 26. Rc1 {[%emt 0:00:16]} Rb8 {[%emt 0:00:58]} 27. Kxd3 {[%emt 0:00:29]} Ne5+ {[%emt 0:00:09]} 28. Ke2 {[%emt 0:00:44]} Rd8 {[%emt 0:00:28]} 29. f4 {[%emt 0:00:35]} Nc6 {[%emt 0:00:16]} 30. Rc3 {[%emt 0:00:17]} Kg6 {[%emt 0:00:50]} 31. g4 {[%emt 0:00:34]} f5 {[%emt 0:00:35]} 32. gxf5+ {[%emt 0:00:30]} Kxf5 {[%emt 0:00:12]} 33. g3 {[%emt 0:00:16]} Kg4 {[%emt 0:02:34]} 34. Ke1 {[%emt 0:00:57]} Nd4 {[%emt 0:01:20]} 35. Rc7 {[%emt 0:02:30]} Nf3+ {[%emt 0:00:29]} 36. Kf1 {[%emt 0:00:25]} g6 {[%emt 0:00:19]} 37. Rxb7 {[%emt 0:00:59]} Rd1+ {[%emt 0:01:31]} 38. Ke2 {[%emt 0:00:27]} Rd2+ {[%emt 0:01:31]} 39. Kf1 {[%emt 0:00:19]} Kxg3 {[%emt 0:00:18]} 40. b4 {[%emt 0:00:00]} Rf2# {[%emt 0:00:00]} 0-1

[Event "46th GRE-chT Premier 2018"]
[Site "Rio Achaia"]
[Date "2018.07.12"]
[Round "4"]
[White "Koukouliatas, Sotirios Georgios"]
[Black "Kollias, Ioannis K"]
[Result "0-1"]
[ECO "A45"]
[WhiteElo "1130"]
[BlackElo "1546"]
[Annotator "NA"]
[PlyCount "72"]
[EventDate "2018.07.10"]
[EventType "team-tourn"]
[EventCountry "GRE"]
[SourceTitle "playchess.com"]
[Source "ChessBase"]
[SourceQuality "1"]
[TimeControl "40/5400+30:1800+30"]

1. d4 {[%emt 0:00:00]} Nf6 {[%emt 0:00:00]} 2. Bf4 {[%emt 0:00:00]} d5 {[%emt 0:00:00]} 3. e3 {[%emt 0:00:00]} Bf5 {[%emt 0:00:12]} 4. Bd3 {[%emt 0:00:10]} Bxd3 {[%emt 0:00:27]} 5. Qxd3 {[%emt 0:00:08]} c6 {[%emt 0:00:58]} 6. Nf3 {[%emt 0:00:28]} Nbd7 {[%emt 0:00:37]} 7. O-O {[%emt 0:00:29]} e6 {[%emt 0:00:37]} 8. Nbd2 {[%emt 0:00:29]} Be7 {[%emt 0:00:47]} 9. c4 {[%emt 0:00:32]} O-O {[%emt 0:01:02]} 10. c5 {[%emt 0:03:53]} Nh5 {[%emt 0:03:30]} 11. Bg3 {[%emt 0:01:04]} Nxg3 {[%emt 0:00:16]} 12. hxg3 {[%emt 0:00:05]} e5 {[%emt 0:03:08]} 13. Qe2 {[%emt 0:04:26]} e4 {[%emt 0:08:51]} 14. Nh2 {[%emt 0:01:26]} f5 {[%emt 0:11:51]} 15. b4 {[%emt 0:06:15]} Qe8 {[%emt 0:09:25]} 16. b5 {[%emt 0:09:54]} Rf6 {[%emt 0:04:37]} 17. bxc6 {[%emt 0:02:52]} bxc6 {[%emt 0:05:01]} 18. f4 {[%emt 0:06:09]} exf3 {[%emt 0:08:52]} 19. Rxf3 {[%emt 0:04:20]} Qh5 {[%emt 0:06:48]} 20. Rf2 {[%emt 0:04:00]} Qg5 {[%emt 0:09:01]} 21. g4 {[%emt 0:13:17]} fxg4 {[%emt 0:08:17]} 22. Nxg4 {[%emt 0:04:21]} Rxf2 {[%emt 0:04:00]} 23. Nxf2 {[%emt 0:02:49]} Rb8 {[%emt 0:04:00]} 24. Nb3 {[%emt 0:05:21]} Rb5 {[%emt 0:02:08]} 25. e4 {[%emt 0:06:30]} Nf6 {[%emt 0:05:51]} 26. exd5 {[%emt 0:01:36]} Nxd5 {[%emt 0:00:30]} 27. Qe6+ {[%emt 0:00:15]} Kf8 {[%emt 0:00:47]} 28. Qxc6 {[%emt 0:01:28]} Rb8 {[%emt 0:01:40]} 29. Rf1 {[%emt 0:04:40]} Nf6 {[%emt 0:00:40]} 30. Qc7 {[%emt 0:07:10]} Re8 {[%emt 0:00:25]} 31. Qxa7 {[%emt 0:01:55]} Kg8 {[%emt 0:00:31]} 32. c6 {[%emt 0:01:09]} Nh5 {[%emt 0:00:33]} 33. g4 {[%emt 0:05:52]} Nf4 {[%emt 0:00:28]} 34. Nc1 {[%emt 0:02:26]} Qh4 {[%emt 0:00:25]} 35. Re1 {[%emt 0:00:46]} Qg3+ {[%emt 0:00:13]} 36. Kf1 {[%emt 0:00:07]} Qg2# {[%emt 0:00:04]} 0-1

[Event "46th GRE-chT Premier 2018"]
[Site "Rio Achaia"]
[Date "2018.07.12"]
[Round "4"]
[White "Tafani, Kleinta"]
[Black "Vitzileou, Fedra"]
[Result "1-0"]
[ECO "E20"]
[WhiteElo "1102"]
[BlackElo "1226"]
[Annotator "NA"]
[PlyCount "57"]
[EventDate "2018.07.10"]
[EventType "team-tourn"]
[EventCountry "GRE"]
[SourceTitle "playchess.com"]
[Source "ChessBase"]
[SourceQuality "1"]
[TimeControl "40/5400+30:1800+30"]

1. d4 {[%emt 0:02:42]} Nf6 {[%emt 0:00:00]} 2. c4 {[%emt 0:00:10]} e6 {[%emt 0:00:00]} 3. Nc3 {[%emt 0:00:11]} Bb4 {[%emt 0:00:00]} 4. Bd2 {[%emt 0:00:26]} O-O {[%emt 0:00:11]} 5. Nf3 {[%emt 0:00:17]} b6 {[%emt 0:00:50]} 6. e3 {[%emt 0:00:52]} Bb7 {[%emt 0:00:20]} 7. Bd3 {[%emt 0:03:35]} c5 {[%emt 0:10:00]} 8. a3 {[%emt 0:04:17]} Bxc3 {[%emt 0:00:14]} 9. Bxc3 {[%emt 0:00:13]} cxd4 {[%emt 0:00:37]} 10. exd4 {[%emt 0:00:20]} Nc6 {[%emt 0:00:56]} 11. Qc2 {[%emt 0:06:01]} h6 {[%emt 0:08:00]} 12. O-O-O {[%emt 0:03:06]} Qe7 {[%emt 0:16:20]} 13. Rhg1 {[%emt 0:02:39]} Rfc8 {[%emt 0:03:22]} 14. Kb1 {[%emt 0:00:57]} Na5 {[%emt 0:03:31]} 15. Nd2 {[%emt 0:02:34]} Ba6 {[%emt 0:06:46]} 16. Bb4 {[%emt 0:09:34]} Qd8 {[%emt 0:04:09]} 17. c5 {[%emt 0:01:52]} Bxd3 {[%emt 0:01:39]} 18. Qxd3 {[%emt 0:00:12]} bxc5 {[%emt 0:02:12]} 19. dxc5 {[%emt 0:03:48]} Nd5 {[%emt 0:04:18]} 20. Ne4 {[%emt 0:02:53]} Nc6 {[%emt 0:11:38]} 21. Qc4 {[%emt 0:19:42]} Ncxb4 {[%emt 0:05:18]} 22. axb4 {[%emt 0:00:21]} Rcb8 {[%emt 0:04:15]} 23. b5 {[%emt 0:02:17]} Qa5 {[%emt 0:03:48]} 24. Nd6 {[%emt 0:01:05]} Nc7 {[%emt 0:02:14]} 25. Nxf7 {[%emt 0:04:21]} Nxb5 {[%emt 0:03:08]} 26. Nxh6+ {[%emt 0:00:45]} Kf8 {[%emt 0:06:36]} 27. Qf4+ {[%emt 0:00:20]} Ke8 {[%emt 0:00:26]} 28. Qf7+ {[%emt 0:00:09]} Kd8 {[%emt 0:00:15]} 29. Qxd7# 1-0

[Event "46th GRE-chT Premier 2018"]
[Site "Rio Achaia"]
[Date "2018.07.12"]
[Round "4"]
[White "Fertakis, Dimitrios"]
[Black "Tzikas, Athanasios G"]
[Result "0-1"]
[ECO "B90"]
[WhiteElo "1058"]
[BlackElo "1251"]
[Annotator "NA"]
[PlyCount "158"]
[EventDate "2018.07.10"]
[EventType "team-tourn"]
[EventCountry "GRE"]
[SourceTitle "playchess.com"]
[Source "ChessBase"]
[SourceQuality "1"]
[TimeControl "40/5400+30:1800+30"]

1. e4 {[%emt 0:00:00]} c5 {[%emt 0:00:00]} 2. Nf3 {[%emt 0:00:00]} d6 {[%emt 0:00:00]} 3. d4 {[%emt 0:00:00]} cxd4 {[%emt 0:00:00]} 4. Nxd4 {[%emt 0:00:00]} Nf6 {[%emt 0:00:04]} 5. Nc3 {[%emt 0:00:00]} a6 {[%emt 0:00:11]} 6. Be3 {[%emt 0:00:09]} e6 {[%emt 0:00:25]} 7. Be2 {[%emt 0:00:13]} b5 {[%emt 0:00:28]} 8. Bf3 {[%emt 0:00:18]} Bb7 {[%emt 0:00:21]} 9. e5 {[%emt 0:00:33]} Nd5 {[%emt 0:00:42]} 10. Nxd5 {[%emt 0:01:27]} Bxd5 {[%emt 0:00:27]} 11. exd6 Qxd6 {[%emt 0:01:09]} 12. O-O {[%emt 0:03:56]} Be7 {[%emt 0:03:00]} 13. Nb3 {[%emt 0:09:29]} Bc6 {[%emt 0:10:23]} 14. Bxc6+ {[%emt 0:10:37]} Nxc6 {[%emt 0:01:03]} 15. Qxd6 {[%emt 0:06:39]} Bxd6 {[%emt 0:00:09]} 16. c3 {[%emt 0:00:13]} O-O {[%emt 0:04:08]} 17. Rad1 {[%emt 0:01:40]} Bc7 {[%emt 0:03:03]} 18. Rd2 {[%emt 0:02:52]} Rfd8 {[%emt 0:02:42]} 19. Rfd1 {[%emt 0:02:48]} Rxd2 {[%emt 0:04:56]} 20. Rxd2 {[%emt 0:00:23]} Ne5 21. Re2 {[%emt 0:08:15]} Rd8 {[%emt 0:06:08]} 22. Rd2 {[%emt 0:12:46]} Rxd2 {[%emt 0:03:49]} 23. Nxd2 {[%emt 0:00:08]} Ng4 {[%emt 0:00:21]} 24. Nf1 {[%emt 0:04:30]} Ne5 {[%emt 0:10:16]} 25. Bf4 {[%emt 0:01:02]} Nf3+ {[%emt 0:01:24]} 26. gxf3 {[%emt 0:01:08]} Bxf4 {[%emt 0:00:44]} 27. Ng3 {[%emt 0:00:15]} Kf8 {[%emt 0:00:47]} 28. Ne2 {[%emt 0:00:53]} Be5 {[%emt 0:01:01]} 29. h3 {[%emt 0:00:44]} Ke7 {[%emt 0:01:56]} 30. Kf1 {[%emt 0:01:02]} Kf6 {[%emt 0:01:09]} 31. Ng3 {[%emt 0:02:14]} Kg5 {[%emt 0:03:51]} 32. Kg2 {[%emt 0:02:08]} f5 {[%emt 0:05:26]} 33. Ne2 {[%emt 0:02:22]} h5 {[%emt 0:08:50]} 34. Nc1 {[%emt 0:05:49]} f4 {[%emt 0:03:54]} 35. Nb3 {[%emt 0:03:11]} Kf5 {[%emt 0:01:34]} 36. Nc5 {[%emt 0:02:17]} a5 {[%emt 0:00:24]} 37. Nb3 {[%emt 0:01:57]} a4 {[%emt 0:00:29]} 38. Nd2 {[%emt 0:00:09]} g5 {[%emt 0:01:06]} 39. Ne4 {[%emt 0:01:54]} g4 {[%emt 0:02:04]} 40. hxg4+ {[%emt 0:00:00]} hxg4 {[%emt 0:00:00]} 41. Nd2 {[%emt 0:00:45]} a3 {[%emt 0:04:38]} 42. fxg4+ {[%emt 0:05:30]} Kxg4 {[%emt 0:01:38]} 43. f3+ {[%emt 0:00:07]} Kf5 {[%emt 0:00:30]} 44. bxa3 {[%emt 0:00:17]} Bxc3 {[%emt 0:00:11]} 45. Ne4 {[%emt 0:00:09]} Be5 {[%emt 0:06:04]} 46. Nc5 {[%emt 0:02:19]} Bd6 {[%emt 0:02:38]} 47. Nb3 {[%emt 0:07:45]} e5 {[%emt 0:01:09]} 48. a4 {[%emt 0:00:53]} bxa4 {[%emt 0:00:45]} 49. Nd2 {[%emt 0:00:11]} Bb4 {[%emt 0:02:04]} 50. Ne4 {[%emt 0:00:26]} Ke6 {[%emt 0:01:32]} 51. Kf2 {[%emt 0:00:21]} Kd5 {[%emt 0:01:05]} 52. Ke2 {[%emt 0:00:20]} Kd4 {[%emt 0:00:32]} 53. Nf6 {[%emt 0:04:53]} Be7 {[%emt 0:01:53]} 54. Ne4 {[%emt 0:00:30]} a3 {[%emt 0:01:12]} 55. Kd2 {[%emt 0:00:48]} Bb4+ {[%emt 0:00:24]} 56. Ke2 {[%emt 0:08:59]} Ba5 {[%emt 0:00:29]} 57. Nd6 {[%emt 0:01:44]} Kc3 {[%emt 0:01:37]} 58. Nb5+ {[%emt 0:01:03]} Kb2 {[%emt 0:00:12]} 59. Kd1 {[%emt 0:00:53]} Kxa2 {[%emt 0:00:15]} 60. Kc2 {[%emt 0:00:05]} Bb4 {[%emt 0:01:45]} 61. Nc7 {[%emt 0:03:31]} e4 {[%emt 0:01:06]} 62. fxe4 {[%emt 0:01:52]} f3 {[%emt 0:00:21]} 63. Nd5 {[%emt 0:00:10]} f2 {[%emt 0:02:23]} 64. Ne3 {[%emt 0:00:30]} Bc5 {[%emt 0:00:47]} 65. Nf1 {[%emt 0:00:26]} Bd6 {[%emt 0:00:15]} 66. Ne3 {[%emt 0:00:13]} Be5 {[%emt 0:00:18]} 67. Nf1 {[%emt 0:00:27]} Bf4 {[%emt 0:00:03]} 68. e5 {[%emt 0:00:42]} Bxe5 69. Nd2 {[%emt 0:00:34]} Bc7 {[%emt 0:01:04]} 70. Kc3 {[%emt 0:02:09]} Ba5+ {[%emt 0:00:06]} 71. Kc2 {[%emt 0:00:13]} Bxd2 {[%emt 0:00:05]} 72. Kxd2 {[%emt 0:00:15]} f1=Q {[%emt 0:00:05]} 73. Ke3 {[%emt 0:00:08]} Qd1 {[%emt 0:00:15]} 74. Ke4 {[%emt 0:00:08]} Kb2 {[%emt 0:00:05]} 75. Ke3 {[%emt 0:00:09]} a2 {[%emt 0:00:04]} 76. Ke4 {[%emt 0:00:03]} a1=Q {[%emt 0:00:07]} 77. Ke5 {[%emt 0:00:03]} Qa5+ {[%emt 0:00:07]} 78. Ke4 {[%emt 0:00:10]} Qg4+ {[%emt 0:00:08]} 79. Kd3 {[%emt 0:00:09]} Qc3# {[%emt 0:00:06]} 0-1